bitfinex-derivatives/quotes_SOLF0:USTF0_20250325
["timestamp","ask_amount","ask_price","bid_price","bid_amount"]
[1742895122018,7.1069,140.69,140.66,7.1082]
[1742895122219,0.05091185,140.69,140.67,0.04667639]
[1742895122617,0.05091185,140.69,140.67,7.15457639]
[1742895123220,0.05091185,140.69,140.68,7.1074]
[1742895124521,0.05091185,140.69,140.67,7.15437639]
[1742895124717,0.05091185,140.69,140.67,0.04667639]
[1742895125219,0.05091185,140.69,140.61,82.65153655]
[1742895125415,0.05091185,140.69,140.61,66.3615531]
[1742895125618,0.05091185,140.69,140.61,64.3895531]
[1742895125824,7.1089,140.66,140.61,64.3895531]
[1742895126120,7.1089,140.66,140.61,38.9895531]
[1742895126318,0.04982356,140.65,140.62,7.16459634]
[1742895126520,7.15882356,140.65,140.62,7.16459634]
[1742895126927,7.15882356,140.65,140.62,0.05439634]
[1742895127122,0.04982356,140.65,140.62,0.05439634]
[1742895127522,7.1097,140.64,140.62,0.05439634]
[1742895127717,0.04982356,140.65,140.62,0.05439634]
[1742895128127,62.0,140.63,140.62,0.05439634]
[1742895131429,69.11,140.63,140.62,0.05439634]
[1742895132226,62.0,140.63,140.62,7.16489634]
[1742895134224,0.04982356,140.65,140.64,7.1094]
[1742895137133,62.04982356,140.65,140.64,7.1094]
[1742895140131,62.04982356,140.65,140.62,25.47439634]
[1742895140735,62.04982356,140.65,140.62,0.05439634]
[1742895141236,62.04982356,140.65,140.62,7.16479634]
[1742895141428,69.15902356,140.65,140.62,7.16479634]
[1742895142236,62.04982356,140.65,140.63,7.1098]
[1742895143736,62.04982356,140.65,140.64,7.1094]
[1742895144430,25.38,140.71,140.66,7.108]
[1742895145234,7.1068,140.7,140.66,7.108]
[1742895145437,62.0,140.69,140.65,25.42]
[1742895145636,62.05245413,140.69,140.67,0.05397619]
[1742895145836,62.05245413,140.69,140.68,7.1074]
[1742895147237,62.05245413,140.69,140.68,32.5474]
[1742895151538,27.4673,140.78,140.72,7.105]
[1742895151839,25.42,140.78,140.71,25.44]
[1742895152239,7.1033,140.77,140.73,7.1047]
[1742895152443,62.0,140.75,140.73,7.1047]
[1742895152736,62.05021462,140.75,140.73,0.05004662]
[1742895154446,7.1044,140.74,140.73,0.05004662]
[1742895154944,62.05021462,140.75,140.73,0.05004662]
[1742895155244,69.15431462,140.75,140.73,0.05004662]
[1742895155448,62.05021462,140.75,140.73,0.05004662]
[1742895155743,7.1044,140.74,140.73,0.05004662]
[1742895157651,69.15421462,140.75,140.73,0.05004662]
[1742895158241,62.05021462,140.75,140.73,0.05004662]
[1742895158745,62.05021462,140.75,140.74,7.1044]
[1742895166359,62.05021462,140.75,140.74,9.1374]
[1742895166860,0.05021462,140.75,140.74,9.1374]
[1742895167058,3.93,140.84,140.79,7.1018]
[1742895167459,7.1002,140.83,140.79,7.1018]
[1742895167958,62.0,140.82,140.8,25.44]
[1742895168158,62.04798775,140.82,140.8,25.49061017]
[1742895168757,62.04798775,140.82,140.81,7.1009]
[1742895169062,62.04798775,140.82,140.8,25.49061017]
[1742895169261,62.04798775,140.82,140.8,32.59181017]
[1742895169759,62.04798775,140.82,140.81,7.1009]
[1742895169973,62.04798775,140.82,140.8,25.49061017]
[1742895172562,62.04798775,140.82,140.8,0.05061017]
[1742895173664,7.1009,140.81,140.8,0.05061017]
[1742895177067,69.1009,140.81,140.8,0.05061017]
[1742895179373,62.0,140.81,140.8,0.05061017]
[1742895181066,69.1009,140.81,140.8,0.05061017]
[1742895190183,62.0,140.81,140.8,0.05061017]
[1742895191589,62.0,140.81,140.8,7.15201017]
[1742895192288,62.0,140.81,140.8,0.05061017]
[1742895193085,62.0,140.81,140.8,7.15201017]
[1742895194188,62.0,140.81,140.8,0.05061017]
[1742895196895,69.1009,140.81,140.8,0.05061017]
[1742895201000,7.1032,140.77,140.73,27.3581]
[1742895201193,25.34,140.79,140.73,27.3581]
[1742895201393,7.1035,140.76,140.73,27.3581]
[1742895201898,25.34,140.79,140.73,27.3581]
[1742895202098,0.05102109,140.76,140.73,27.40508913]
[1742895202501,0.05102109,140.76,140.73,25.38698913]
[1742895202799,0.05102109,140.76,140.73,0.04698913]
[1742895202999,7.1039,140.75,140.73,0.04698913]
[1742895203200,0.05102109,140.76,140.73,0.04698913]
[1742895203400,25.43102109,140.76,140.73,0.04698913]
[1742895203600,7.1044,140.74,140.73,0.04698913]
[1742895204500,69.1044,140.74,140.73,0.04698913]
[1742895206997,8.54059395,140.79,140.73,0.04698913]
[1742895206998,379.33,140.98,140.75,14.2078]
[1742895207204,8.54059395,140.95,140.8,8.54059395]
[1742895207499,8.54059395,140.91,140.76,238.3741]
[1742895207707,25.78,140.9,140.77,25.76]
[1742895207898,7.0976,140.88,140.8,7.1011]
[1742895208200,0.04933152,140.85,140.82,0.04861303]
[1742895209997,8.58992547,140.85,140.76,4.0141]
[1742895210198,10.48999395,140.85,140.76,1.9933]
[1742895210396,1.997,140.84,140.76,1.9933]
[1742895210603,32.8999,140.83,140.77,7.1024]
[1742895210798,25.8,140.83,140.77,7.1024]
[1742895210998,25.8,140.83,140.74,25.8]
[1742895211200,0.05049628,140.81,140.79,0.049087]
[1742895211508,0.05049628,140.81,140.74,25.8]
[1742895211691,25.78,140.8,140.72,5.8801]
[1742895211897,7.1027,140.78,140.73,7.1044]
[1742895212300,25.78,140.8,140.72,5.8801]
[1742895212602,25.78,140.8,140.74,7.1044]
[1742895212900,0.05460295,140.77,140.75,0.04904226]
[1742895213201,8.0,140.76,140.75,0.04904226]
[1742895213902,8.0,140.76,140.75,7.15294226]
[1742895214399,8.0,140.76,140.75,0.04904226]
[1742895217002,15.1034,140.76,140.75,0.04904226]
[1742895217300,8.0,140.76,140.75,0.04904226]
[1742895222408,15.1034,140.76,140.75,0.04904226]
[1742895227120,7.105,140.73,140.7,234.38]
[1742895227421,7.105,140.73,140.7,7.106]
[1742895227720,7.105,140.73,140.68,25.68]
[1742895228113,7.105,140.73,140.7,7.1062]
[1742895228314,7.15441377,140.72,140.7,7.1062]
[1742895228621,0.04891377,140.72,140.7,7.1062]
[1742895230221,8.0,140.71,140.7,7.1062]
[1742895230918,0.04891377,140.72,140.7,7.1062]
[1742895233117,0.04891377,140.72,140.71,7.1059]
[1742895234022,8.04891377,140.72,140.71,7.1059]
[1742895234224,8.04891377,140.72,140.7,7.1062]
[1742895234622,8.04891377,140.72,140.69,7.15270016]
[1742895237828,15.15441377,140.72,140.69,7.15270016]
[1742895238224,8.04891377,140.72,140.69,7.15270016]
[1742895239729,15.15451377,140.72,140.69,0.04600016]
[1742895240125,8.04891377,140.72,140.69,0.04600016]
[1742895240320,0.04891377,140.72,140.71,7.1059]
[1742895240533,27.542,140.8,140.71,25.56]
[1742895240730,27.4538,140.82,140.72,10.45005827]
[1742895240926,7.1016,140.8,140.76,7.1031]
[1742895241327,7.1016,140.8,140.77,7.1029]
[1742895241831,7.15190806,140.8,140.77,7.1498334]
[1742895242834,7.1019,140.79,140.77,7.1498334]
[1742895243335,8.0,140.78,140.77,7.1498334]
[1742895246335,0.05030806,140.8,140.79,7.1019]
[1742895252739,0.05030806,140.8,140.78,11.0202]
[1742895253136,0.05030806,140.8,140.78,3.9181]
[1742895254237,0.05030806,140.8,140.79,7.1019]
[1742895256535,0.05030806,140.8,140.77,25.5869334]
[1742895257039,0.05030806,140.8,140.77,0.0469334]
[1742895257441,7.102,140.79,140.77,0.0469334]
[1742895257640,0.05030806,140.8,140.77,0.0469334]
[1742895257942,7.1024,140.78,140.77,0.0469334]
[1742895260247,7.1021,140.79,140.77,0.0469334]
[1742895261045,5.0,140.78,140.77,0.0469334]
[1742895262249,12.1024,140.78,140.77,0.0469334]
[1742895262941,37.5424,140.78,140.77,0.0469334]
[1742895263245,30.44,140.78,140.65,24.77245827]
[1742895263446,30.44,140.78,140.68,25.46]
[1742895263644,25.44,140.78,140.68,25.46]
[1742895263845,7.1047,140.74,140.71,7.1058]
[1742895264144,7.15031493,140.74,140.71,7.1584462]
[1742895265048,7.1052,140.73,140.71,0.0526462]
[1742895265952,7.1054,140.72,140.71,0.0526462]
[1742895266652,12.1054,140.72,140.71,0.0526462]
[1742895269950,358.0,141.0,140.72,386.33]
[1742895270148,8.54885827,140.98,140.73,263.4646]
[1742895270343,8.54885827,140.98,140.82,8.54885827]
[1742895270551,7.0945,140.94,140.83,30.9395]
[1742895271154,0.05135138,140.9,140.87,0.0479516]
[1742895271455,3.8347,140.99,140.88,27.18]
[1742895271645,7.0931,140.97,140.9,7.0962]
[1742895271848,12.38355827,140.99,140.89,27.2]
[1742895272556,0.05101487,140.95,140.93,0.04754545]
[1742895272955,5.0,140.94,140.93,0.04754545]
[1742895278760,12.0943,140.94,140.93,0.04754545]
[1742895279557,5.0,140.94,140.93,0.04754545]
[1742895280159,12.0943,140.94,140.93,0.04754545]
[1742895281859,7.095,140.93,140.86,26.96]
[1742895282563,7.0954,140.92,140.86,26.96]
[1742895282865,0.04809347,140.9,140.88,0.0460084]
[1742895285163,5.0,140.89,140.88,0.0460084]
[1742895286066,0.04809347,140.9,140.88,0.0460084]
[1742895287665,7.14449347,140.9,140.88,0.0460084]
[1742895289067,5.0,140.89,140.88,0.0460084]
[1742895293276,12.0968,140.89,140.88,0.0460084]
[1742895294078,5.0,140.89,140.88,0.0460084]
[1742895294678,12.0968,140.89,140.88,0.0460084]
[1742895296275,5.0,140.89,140.8,7.101]
[1742895296578,26.68,140.88,140.8,7.101]
[1742895296778,26.68,140.88,140.79,26.68]
[1742895296979,7.0994,140.84,140.79,26.68]
[1742895297277,26.68,140.88,140.79,26.68]
[1742895297477,0.05455236,140.83,140.8,0.04549539]
[1742895299680,5.05455236,140.83,140.8,0.04549539]
[1742895300181,5.05455236,140.83,140.8,7.14679539]
[1742895300674,5.05455236,140.83,140.8,7.14649539]
[1742895300878,5.05455236,140.83,140.8,0.04549539]
[1742895301379,0.05455236,140.83,140.8,0.04549539]
[1742895302279,0.05455236,140.83,140.8,7.14659539]
[1742895303383,0.05455236,140.83,140.8,7.14679539]
[1742895303580,0.05455236,140.83,140.8,0.04549539]
[1742895304384,5.05455236,140.83,140.8,0.04549539]
[1742895304583,5.05455236,140.83,140.8,7.14679539]
[1742895306884,0.05455236,140.83,140.82,7.1004]
[1742895307077,1.9697,140.91,140.81,8.5358614]
[1742895307577,7.0976,140.88,140.79,35.2158614]
[1742895307775,1.9697,140.91,140.79,35.2158614]
[1742895307992,7.0987,140.86,140.81,7.1006]
[1742895308285,0.05388357,140.86,140.84,0.05136552]
[1742895308584,7.15248357,140.86,140.84,0.05136552]
[1742895309187,7.0988,140.85,140.84,0.05136552]
[1742895309785,7.15238357,140.86,140.84,0.05136552]
[1742895309985,5.0,140.85,140.84,0.05136552]
[1742895311986,5.0,140.85,140.84,7.15076552]
[1742895312192,5.0,140.85,140.84,0.05136552]
[1742895312690,5.0,140.85,140.84,7.15076552]
[1742895312990,5.0,140.85,140.84,0.05136552]
[1742895313293,5.0,140.85,140.84,7.15076552]
[1742895314692,0.05388357,140.86,140.85,7.0988]
[1742895315391,1.23551027,140.97,140.86,365.0]
[1742895315592,0.02002714,141.05,140.96,13.33309851]
[1742895315790,7.23421622,141.17,141.03,13.33309851]
[1742895315990,5.9313,141.17,141.04,27.48]
[1742895316186,5.9313,141.17,141.03,13.33309851]
[1742895316391,33.4113,141.17,141.04,27.48]
[1742895316694,0.05002075,141.11,141.09,0.04542895]
[1742895316897,27.5,141.16,141.09,0.04542895]
[1742895317093,0.05336341,141.11,141.09,0.04542895]
[1742895317298,27.58,141.25,141.1,27.48]
[1742895317595,1.8561,141.24,141.1,27.48]
[1742895317800,5.0,141.22,141.1,27.48]
[1742895318000,5.0,141.22,141.1,27.58]
[1742895318197,7.0816,141.2,141.1,27.58]
[1742895318399,0.04728295,141.17,141.15,0.04792868]
[1742895321301,0.04728295,141.17,141.15,0.06795704]
[1742895322002,5.0,141.16,141.15,0.06795704]
[1742895323300,5.0,141.16,141.1,27.58]
[1742895324205,27.42,141.15,141.08,1.8537]
[1742895324400,27.42,141.15,141.12,0.04884768]
[1742895324709,0.04828138,141.13,141.12,0.04884768]
[1742895325804,261.33569258,141.21,141.12,0.04884768]
[1742895326006,261.33569258,141.21,141.11,27.5]
[1742895326407,7.0818,141.19,141.11,27.5]
[1742895326706,261.33569258,141.21,141.11,27.5]
[1742895326905,0.0505856,141.16,141.14,0.05106825]
[1742895327105,27.48,141.2,141.14,0.05106825]
[1742895327307,0.05258626,141.16,141.14,0.05106825]
[1742895329605,7.0811,141.21,141.15,27.42]
[1742895330101,7.0805,141.22,141.15,34.5038]
[1742895330413,7.0805,141.22,141.15,27.42]
[1742895330709,7.13533616,141.2,141.17,0.04523594]
[1742895331209,0.05383616,141.2,141.17,0.04523594]
[1742895331610,0.01947102,141.2,141.18,27.66]
[1742895332207,0.01947102,141.2,141.17,0.04523594]
[1742895333310,7.10097102,141.2,141.17,0.04523594]
[1742895333812,0.01947102,141.2,141.17,7.12763594]
[1742895334307,5.01947102,141.2,141.18,7.082]
[1742895334512,5.01947102,141.2,141.17,0.04523594]
[1742895335017,5.01947102,141.2,141.18,7.0822]
[1742895335215,235.8471,141.29,141.17,0.04523594]
[1742895335511,27.68,141.28,141.16,3.7851]
[1742895335906,27.46752789,141.28,141.16,3.7851]
[1742895336410,0.04528231,141.23,141.21,0.04932712]
[1742895336615,14.1468,141.36,141.21,0.04932712]
[1742895336811,4.086,141.34,141.2,27.66]
[1742895337115,27.66,141.33,141.2,27.66]
[1742895337715,7.0786,141.26,141.25,0.05176708]
[1742895337909,0.05047659,141.28,141.25,0.05176708]
[1742895338104,5.0,141.27,141.25,0.05176708]
[1742895339219,0.05047659,141.28,141.25,0.05176708]
[1742895340415,7.12777659,141.28,141.25,0.05176708]
[1742895340617,0.05047659,141.28,141.25,0.05176708]
[1742895341126,7.12787659,141.28,141.25,0.05176708]
[1742895341326,0.05047659,141.28,141.25,0.05176708]
[1742895341515,7.12797659,141.28,141.25,0.05176708]
[1742895341711,0.05047659,141.28,141.25,0.05176708]
[1742895342118,7.0782,141.26,141.25,0.05176708]
[1742895345627,5.0,141.26,141.19,16.41842]
[1742895345825,27.52,141.25,141.19,16.41842]
[1742895346123,29.4582,141.25,141.19,16.41842]
[1742895346720,0.0519834,141.23,141.21,0.04757044]
[1742895347728,7.0803,141.22,141.21,0.04757044]
[1742895349730,6.26985065,141.22,141.21,0.04757044]
[1742895354629,0.0519834,141.23,141.21,0.04757044]
[1742895355730,0.0519834,141.23,141.21,7.12787044]
[1742895356629,0.0519834,141.23,141.21,0.04757044]
[1742895357229,7.1317834,141.23,141.21,0.04757044]
[1742895358533,0.0519834,141.23,141.21,0.04757044]
[1742895359133,7.1319834,141.23,141.21,0.04757044]
[1742895359830,7.0803,141.22,141.21,0.04757044]
[1742895362738,7.0813,141.2,141.19,16.41842]
[1742895363937,34.2413,141.2,141.19,16.41842]
[1742895365537,27.16,141.2,141.19,16.41842]
[1742895366034,32.16,141.2,141.19,16.41842]
[1742895367545,5.0,141.2,141.19,16.41842]
[1742895369143,12.0813,141.2,141.19,16.41842]
[1742895369345,5.0,141.2,141.19,16.41842]
[1742895369646,12.0813,141.2,141.19,16.41842]
[1742895370249,5.0,141.2,141.19,16.41842]
[1742895371147,12.0813,141.2,141.19,16.41842]
[1742895371447,5.0,141.2,141.19,16.41842]
[1742895371645,0.0519834,141.23,141.19,43.51842]
[1742895371845,4.0746,141.31,141.2,2.0039]
[1742895372046,4.0746,141.31,141.26,7.0782]
[1742895372344,4.0746,141.31,141.24,27.14]
[1742895372549,29.1515,141.32,141.26,7.078]
[1742895372847,27.14,141.32,141.24,27.14]
[1742895373151,0.05363115,141.3,141.28,0.04618001]
[1742895374344,0.05363115,141.3,141.29,7.0767]
[1742895374948,2.0479,141.39,141.29,7.08]
[1742895375150,2.0479,141.39,141.3,1.9422]
[1742895375449,27.18,141.42,141.3,1.9422]
[1742895375941,15.12210539,141.41,141.28,27.1]
[1742895376141,0.05259373,141.37,141.35,0.05118025]
[1742895376345,7.0741,141.35,141.29,7.0767]
[1742895376547,27.18,141.36,141.28,27.1]
[1742895376950,27.18,141.36,141.26,1.9422]
[1742895377550,0.04835033,141.32,141.3,0.04835451]
[1742895378352,7.0757,141.31,141.3,0.04835451]
[1742895378651,0.04835033,141.32,141.3,0.04835451]
[1742895382555,7.12395033,141.32,141.3,0.04835451]
[1742895383054,0.04835033,141.32,141.3,0.04835451]
[1742895383555,7.12365033,141.32,141.3,0.04835451]
[1742895383854,0.04835033,141.32,141.3,0.04835451]
[1742895384053,7.0673,141.48,141.41,7.0706]
[1742895384256,5.7113,141.57,141.42,29.6797]
[1742895384552,1.29922639,141.56,141.42,29.6797]
[1742895384756,7.0664,141.5,141.42,29.6797]
[1742895385256,0.00276604,141.47,141.45,0.04931234]
[1742895385457,5.7113,141.57,141.42,1.8797]
[1742895385458,27.82,141.52,141.42,1.8797]
[1742895385657,26.91589432,141.57,141.37,365.0]
[1742895385658,7.0691,141.45,141.37,365.0]
[1742895385860,27.82,141.47,141.36,29.6997]
[1742895386054,29.7582,141.46,141.36,29.6997]
[1742895386355,1.8709,141.5,141.36,29.6997]
[1742895386557,1.8709,141.5,141.36,394.6997]
[1742895386757,0.04831679,141.44,141.42,0.04500372]
[1742895386949,8.9373,141.5,141.42,27.94500372]
[1742895387155,0.04882212,141.44,141.42,27.94500372]
[1742895387357,8.9373,141.5,141.43,2.0246]
[1742895387759,1.8709,141.5,141.43,2.0246]
[1742895387957,1.8709,141.5,141.42,27.9]
[1742895388161,1.8709,141.5,141.41,27.86]
[1742895388460,1.8709,141.5,141.44,0.04523089]
[1742895388857,7.0687,141.45,141.44,0.04523089]
[1742895389054,27.86,141.47,141.38,27.86]
[1742895390061,1.9417,141.46,141.38,27.86]
[1742895390260,0.05211483,141.44,141.41,0.04927299]
[1742895390454,0.05211483,141.44,141.3,365.0]
[1742895390655,2.0479,141.45,141.33,29.8927]
[1742895390852,2.0479,141.45,141.34,27.82]
[1742895391053,7.0717,141.4,141.34,27.82]
[1742895391456,27.82,141.42,141.34,27.82]
[1742895391653,0.05372289,141.38,141.36,0.04829356]
[1742895394254,2.0479,141.45,141.36,0.04829356]
[1742895394461,2.0479,141.45,141.34,27.82]
[1742895395063,7.0717,141.4,141.34,34.8939]
[1742895395260,27.74,141.43,141.34,27.82]
[1742895395465,0.0484537,141.38,141.36,0.05255273]
[1742895395765,27.74,141.43,141.36,0.05255273]
[1742895396165,0.04539432,141.41,141.36,0.05255273]
[1742895396866,7.0721,141.39,141.36,0.05255273]
[1742895397059,0.04539432,141.41,141.36,0.05255273]
[1742895398066,7.0727,141.37,141.36,0.05255273]
[1742895402771,0.0504654,141.38,141.36,0.05255273]
[1742895403362,591.4,141.55,141.37,29.06]
[1742895403568,3.7379,141.53,141.38,1.924]
[1742895403866,3.7379,141.53,141.39,1.8787]
[1742895404470,1.29932227,141.52,141.39,1.8787]
[1742895404673,3.7379,141.53,141.39,1.8787]
[1742895404970,3.7379,141.53,141.44,0.05184932]
[1742895405174,1.29931401,141.52,141.39,1.8787]
[1742895405368,1.29931401,141.52,141.47,0.05395302]
[1742895405566,1.29931401,141.52,141.39,1.8787]
[1742895405763,1.29931401,141.52,141.48,0.05030895]
[1742895405967,8.35931401,141.52,141.39,1.8787]
[1742895406173,3.34691401,141.51,141.39,1.8787]
[1742895406472,29.32,141.5,141.39,8.9502]
[1742895406770,29.32,141.5,141.39,1.8787]
[1742895406968,7.0697,141.44,141.39,1.8787]
[1742895407364,0.04823553,141.43,141.4,0.04872648]
[1742895407861,7.0707,141.41,141.4,0.04872648]
[1742895409476,7.0724,141.38,141.33,40.11]
[1742895409772,29.22,141.42,141.33,40.11]
[1742895409970,7.0726,141.38,141.33,40.11]
[1742895410165,29.22,141.42,141.33,31.1727]
[1742895410365,29.22,141.42,141.33,1.9527]
[1742895410571,7.0736,141.36,141.3,262.52]
[1742895410972,7.0736,141.36,141.32,0.04580732]
[1742895411272,0.04840523,141.35,141.32,0.04580732]
[1742895412576,7.0747,141.33,141.32,0.04580732]
[1742895413080,7.0744,141.34,141.32,0.04580732]
[1742895413375,0.04840523,141.35,141.32,0.04580732]
[1742895414278,7.0747,141.33,141.32,0.04580732]
[1742895415776,29.28,141.34,141.25,5.969]
[1742895415982,29.28,141.34,141.25,2.001]
[1742895416983,0.04655393,141.31,141.28,0.04845045]
[1742895417981,0.04655393,141.31,141.28,7.12555045]
[1742895418281,0.04655393,141.31,141.28,0.04845045]
[1742895419383,7.0763,141.3,141.28,0.04845045]
[1742895419983,7.12245393,141.31,141.28,0.04845045]
[1742895420183,0.04655393,141.31,141.28,0.04845045]
[1742895421582,1.9403,141.41,141.29,29.24]
[1742895421784,1.9403,141.41,141.3,3.9327]
[1742895422385,1.9403,141.41,141.29,29.24]
[1742895422585,0.04685666,141.37,141.34,0.05260402]
[1742895422981,7.0737,141.35,141.34,0.05260402]
[1742895427587,0.04685666,141.37,141.34,0.05260402]
[1742895427985,7.11995666,141.37,141.34,0.05260402]
[1742895428290,0.04685666,141.37,141.34,0.05260402]
[1742895429491,0.04685666,141.37,141.36,7.0732]
[1742895430284,0.04685666,141.37,141.35,7.0735]
[1742895430483,0.04685666,141.37,141.34,0.05260402]
[1742895430690,0.04685666,141.37,141.35,7.0734]
[1742895431186,0.04685666,141.37,141.34,0.05260402]
[1742895431792,0.04685666,141.37,141.35,7.0737]
[1742895431993,0.04685666,141.37,141.34,0.05260402]
[1742895433396,7.0736,141.36,141.34,0.05260402]
[1742895433596,0.04685666,141.37,141.34,0.05260402]
[1742895435299,7.0737,141.35,141.34,0.05260402]
[1742895436098,7.076,141.31,141.28,1.9232]
[1742895436298,7.076,141.31,141.24,32.8032]
[1742895436599,7.0763,141.3,141.26,7.0779]
[1742895436799,28.92,141.35,141.24,32.8032]
[1742895437202,7.0753,141.32,141.24,32.8032]
[1742895437403,0.05125601,141.31,141.28,0.0523769]
[1742895437800,7.12725601,141.31,141.28,7.1295769]
[1742895438002,0.05125601,141.31,141.28,0.0523769]
[1742895438404,7.0766,141.3,141.28,0.0523769]
[1742895438799,0.05125601,141.31,141.28,0.0523769]
[1742895439099,7.0767,141.3,141.28,0.0523769]
[1742895439601,0.05125601,141.31,141.28,0.0523769]
[1742895440900,7.0762,141.3,141.28,0.0523769]
[1742895441401,7.0767,141.29,141.28,0.0523769]
[1742895442002,7.0764,141.3,141.28,0.0523769]
[1742895443905,7.0767,141.29,141.28,0.0523769]
[1742895444403,0.05125601,141.31,141.28,0.0523769]
[1742895445005,0.05125601,141.31,141.29,7.0764]
[1742895445206,0.05125601,141.31,141.28,0.0523769]
[1742895445707,0.05125601,141.31,141.3,7.0762]
[1742895451415,358.0,141.46,141.3,7.08]
[1742895451613,1.9343,141.42,141.31,3.9896]
[1742895451809,1.9343,141.42,141.32,28.62]
[1742895452014,30.5543,141.42,141.32,28.62]
[1742895452715,0.05427772,141.38,141.36,0.05348247]
[1742895452911,7.0727,141.37,141.36,0.05348247]
[1742895453214,0.05427772,141.38,141.36,0.05348247]
[1742895453616,7.0727,141.37,141.36,0.05348247]
[1742895455817,7.0745,141.34,141.31,28.56]
[1742895456316,7.0745,141.34,141.31,35.6355]
[1742895456519,7.0749,141.33,141.31,28.56]
[1742895457018,7.12339687,141.33,141.31,35.68117243]
[1742895457314,7.12339687,141.33,141.31,28.60547243]
[1742895457512,7.0752,141.32,141.31,28.60547243]
[1742895457719,0.04849687,141.33,141.31,0.04547243]
[1742895458814,7.0752,141.32,141.31,0.04547243]
[1742895459518,7.12349687,141.33,141.31,0.04547243]
[1742895459717,7.12349687,141.33,141.31,7.12117243]
[1742895460021,7.12349687,141.33,141.31,0.04547243]
[1742895461115,1.9343,141.42,141.32,28.38]
[1742895461620,7.0718,141.39,141.36,7.0729]
[1742895462119,7.0718,141.39,141.35,7.0735]
[1742895462419,0.04478377,141.39,141.36,0.04644465]
[1742895462718,7.0726,141.38,141.36,0.04644465]
[1742895466316,0.04478377,141.39,141.29,2.0351]
[1742895466620,28.2,141.41,141.3,28.2]
[1742895467320,7.0741,141.35,141.3,28.2]
[1742895467521,0.05190277,141.37,141.34,0.05186509]
[1742895467721,28.2,141.41,141.3,28.2]
[1742895467921,7.0738,141.35,141.34,0.05186947]
[1742895475824,7.0766,141.3,141.27,9.0873]
[1742895476024,7.0766,141.3,141.27,37.0473]
[1742895476225,7.0766,141.3,141.27,29.9698]
[1742895476529,1.9743,141.34,141.27,29.9698]
[1742895476820,7.0773,141.28,141.26,7.078]
[1742895477125,27.94,141.33,141.26,7.12686131]
[1742895477320,0.04664344,141.28,141.26,7.12686131]
[1742895477523,27.94,141.33,141.26,7.12686131]
[1742895477717,0.0540183,141.28,141.26,0.04886131]
[1742895477922,7.0777,141.27,141.26,0.04886131]
[1742895481525,14.1443,141.39,141.29,365.0]
[1742895481731,5.8206,141.57,141.34,21.18314163]
[1742895481926,5.8206,141.57,141.35,28.44]
[1742895481927,365.05189179,141.57,141.35,28.44]
[1742895482127,5.04429179,141.57,141.4,21.18314163]
[1742895482326,3.813,141.57,141.41,267.9776]
[1742895482526,7.0636,141.56,141.47,7.0674]
[1742895482725,0.05395675,141.5,141.48,28.52]
[1742895483029,32.333,141.57,141.48,28.56659648]
[1742895483227,0.04673326,141.5,141.48,28.52]
[1742895483530,3.813,141.57,141.51,0.04971485]
[1742895483733,1.9355,141.57,141.51,7.0653]
[1742895483929,1.9355,141.57,141.49,1.9909]
[1742895484126,0.02004839,141.58,141.49,1.9909]
[1742895484728,0.02004839,141.58,141.52,7.065]
[1742895484933,0.02004839,141.58,141.51,28.48]
[1742895487035,0.05295599,141.56,141.53,0.04655338]
[1742895490532,0.02004839,141.58,141.54,28.28]
[1742895491131,28.28,141.64,141.54,28.28]
[1742895491132,1.2295082,141.68,141.54,28.28]
[1742895491337,28.32,141.68,141.58,7.0618]
[1742895491538,5.7894,141.72,141.58,28.36]
[1742895491733,0.05363365,141.64,141.62,0.05148081]
[1742895492033,358.0,141.81,141.63,28.34]
[1742895492231,1.29715989,141.8,141.64,28.34]
[1742895492429,0.04660909,141.73,141.71,0.04619234]
[1742895492635,28.54,141.8,141.7,28.54]
[1742895492938,28.54,141.8,141.67,28.54]
[1742895493738,0.05187907,141.75,141.72,0.05290371]
[1742895494232,28.52,141.74,141.64,1.9603]
[1742895494836,233.18,141.79,141.65,28.56]